bitfinex-derivatives/quotes_SOLF0:USTF0_20241212
["timestamp","ask_amount","ask_price","bid_price","bid_amount"]
[1734004183481,2.08,229.14,229.08,1.4532]
[1734004183686,2.08,229.14,229.08,3.6352]
[1734004183884,2.1818,229.11,229.08,3.6352]
[1734004184086,2.1818,229.11,229.08,1.4532]
[1734004184282,2.08,229.14,229.08,1.4532]
[1734004184583,2.1816,229.13,229.08,1.4532]
[1734004184784,2.08,229.14,229.08,1.4532]
[1734004185293,2.182,229.09,229.08,1.4532]
[1734004185483,2.08,229.09,229.0,2.1827]
[1734004185689,2.08,229.09,228.99,14.31848011]
[1734004186496,2.08,229.09,228.99,16.50128011]
[1734004186693,2.08,229.09,229.02,12.95698011]
[1734004187089,2.1821,229.08,229.04,2.1824]
[1734004187286,2.08,229.09,229.04,2.1824]
[1734004187493,2.1822,229.07,229.03,2.1825]
[1734004189191,2.1822,229.07,229.04,2.1824]
[1734004190386,2.08,229.14,229.05,12.95698011]
[1734004190593,2.08,229.14,229.08,12.95698011]
[1734004190986,2.08,229.14,229.08,15.13898011]
[1734004191391,2.1818,229.11,229.08,15.13898011]
[1734004192285,2.08,229.14,229.08,15.13898011]
[1734004192491,2.08,229.14,229.09,2.1819]
[1734004192691,2.08,229.15,229.08,12.95698011]
[1734004193790,18.10561835,229.22,229.11,12.95698011]
[1734004193791,5.14863824,229.22,229.11,12.95698011]
[1734004193985,68.83620597,229.29,229.14,12.95698011]
[1734004194190,2.1809,229.2,229.16,2.1813]
[1734004194697,14.29048011,229.29,229.17,2.1811]
[1734004194895,5.12469512,229.26,229.17,12.95698011]
[1734004195292,2.1807,229.22,229.18,2.181]
[1734004196196,2.08,229.25,229.18,2.181]
[1734004196796,2.08,229.25,229.17,15.13818011]
[1734004197592,2.1808,229.22,229.17,12.95698011]
[1734004197792,2.1808,229.22,229.18,2.1811]
[1734004198300,2.1806,229.23,229.19,2.181]
[1734004198597,2.08,229.25,229.19,2.181]
[1734004198796,1.3335,229.29,229.17,12.95698011]
[1734004199096,2.1805,229.25,229.21,2.1808]
[1734004199491,2.1803,229.26,229.2,12.95698011]
[1734004199694,2.1803,229.26,229.22,2.1807]
[1734004199893,5.31929037,229.33,229.23,12.95698011]
[1734004200096,2.1801,229.29,229.23,15.13748011]
[1734004200297,5.31929037,229.33,229.23,15.13748011]
[1734004200599,2.08,229.3,229.23,15.13748011]
[1734004200993,2.1802,229.28,229.23,15.13748011]
[1734004201194,2.08,229.3,229.23,12.95698011]
[1734004201399,2.1802,229.28,229.23,12.95698011]
[1734004201893,2.08,229.3,229.23,12.95698011]
[1734004202500,2.1802,229.28,229.23,12.95698011]
[1734004202890,2.1802,229.28,229.23,15.13758011]
[1734004203899,2.1803,229.27,229.23,12.95698011]
[1734004204399,2.08,229.26,229.18,2.7316]
[1734004205402,2.1807,229.23,229.18,4.9127]
[1734004205591,2.08,229.26,229.18,4.9127]
[1734004205791,2.08,229.26,229.18,2.7316]
[1734004205991,2.08,229.26,229.14,12.95698011]
[1734004206394,1.3386,229.25,229.14,12.95698011]
[1734004206600,2.1807,229.22,229.14,12.95698011]
[1734004206797,2.08,229.21,229.14,12.95698011]
[1734004207196,2.1812,229.18,229.14,12.95698011]
[1734004208402,2.1812,229.18,229.14,15.13838011]
[1734004210704,2.1812,229.18,229.15,2.1814]
[1734004211102,2.1812,229.18,229.14,12.95698011]
[1734004211405,2.1812,229.18,229.14,15.13848011]
[1734004214607,2.1812,229.18,229.14,12.95698011]
[1734004214799,2.1812,229.17,229.14,15.13848011]
[1734004215198,2.08,229.2,229.14,15.13848011]
[1734004215609,2.1811,229.18,229.14,15.13848011]
[1734004216307,2.1811,229.18,229.15,2.1814]
[1734004216605,2.08,229.2,229.14,12.95698011]
[1734004217218,2.08,229.2,229.19,8.29423838]
[1734004217615,2.1808,229.21,229.19,8.29423838]
[1734004217905,2.08,229.22,229.19,8.29423838]
[1734004218113,2.08,229.22,229.21,8.29423838]
[1734004218916,2.08,229.22,229.11,7.18720192]
[1734004219109,2.1808,229.21,229.19,8.29423838]
[1734004219308,2.1808,229.21,229.15,12.96072177]
[1734004219510,2.08,229.22,229.11,5.10720192]
[1734004219710,2.08,229.22,229.1,15.74822177]
[1734004220211,2.08,229.22,229.1,2.7875]
[1734004220416,1.3535,229.21,229.1,1.3409]
[1734004221816,2.1815,229.14,229.1,1.3409]
[1734004222016,2.08,229.15,229.1,1.3409]
[1734004222312,2.08,229.14,229.1,1.3409]
[1734004222513,4.2617,229.13,229.1,1.3409]
[1734004223624,2.08,229.13,229.07,12.96072177]
[1734004223811,2.08,229.13,229.04,12.96072177]
[1734004224216,2.182,229.08,229.04,15.14312177]
[1734004224616,2.182,229.08,229.04,12.96072177]
[1734004224915,2.182,229.09,229.05,2.1823]
[1734004225119,2.08,229.13,229.04,12.96072177]
[1734004225318,194.95563852,229.21,229.03,1.39]
[1734004225319,194.95563852,229.21,229.07,12.96072177]
[1734004225517,10.74476425,229.2,229.07,12.96072177]
[1734004225822,2.1815,229.14,229.07,12.96072177]
[1734004226322,2.08,229.15,229.09,2.1819]
[1734004226516,2.08,229.15,229.07,12.96072177]
[1734004227619,2.08,229.15,229.08,2.182]
[1734004227620,2.1817,229.12,229.08,2.182]
[1734004227825,2.08,229.15,229.07,12.96072177]
[1734004228019,2.08,229.14,229.07,12.96072177]
[1734004229521,2.08,229.14,229.08,1.3743]
[1734004230719,2.08,229.14,229.1,2.1818]
[1734004231217,2.08,229.14,229.08,1.3743]
[1734004231517,2.08,229.16,229.1,12.96072177]
[1734004231716,2.08,229.2,229.13,12.96072177]
[1734004231919,2.08,229.2,229.15,2.1813]
[1734004232114,2.1807,229.23,229.13,12.96072177]
[1734004232319,2.08,229.22,229.16,12.96072177]
[1734004232523,0.1124,229.29,229.16,12.96072177]
[1734004232524,2.08,229.23,229.16,12.96072177]
[1734004233328,2.08,229.23,229.13,12.96072177]
[1734004233519,2.1812,229.18,229.13,15.14222177]
[1734004234324,2.1812,229.18,229.13,12.96072177]
[1734004234527,2.08,229.23,229.16,12.96072177]
[1734004235225,13.36032177,229.3,229.16,12.96072177]
[1734004235425,5.12723768,229.27,229.19,12.96072177]
[1734004235921,2.1805,229.25,229.21,2.1808]
[1734004236125,5.12723768,229.27,229.19,12.96072177]
[1734004236825,2.1806,229.24,229.19,15.14162177]
[1734004237122,2.1806,229.24,229.19,12.96072177]
[1734004237527,2.1806,229.24,229.21,2.1808]
[1734004237827,2.1806,229.24,229.19,12.96072177]
[1734004238825,2.1806,229.24,229.2,2.1809]
[1734004242219,2.08,229.26,229.19,12.96072177]
[1734004242419,52.47118722,229.33,229.22,12.96072177]
[1734004242624,10.74579016,229.32,229.22,12.96072177]
[1734004242927,10.74579016,229.32,229.23,2.1806]
[1734004242928,5.1481125,229.31,229.23,2.1806]
[1734004243329,2.08,229.3,229.22,12.96072177]
[1734004243531,2.1803,229.27,229.23,2.1806]
[1734004245528,2.1802,229.28,229.23,2.1806]
[1734004245728,2.08,229.3,229.23,2.1806]
[1734004246326,2.08,229.3,229.22,12.96072177]
[1734004246327,2.08,229.3,229.24,2.1805]
[1734004247033,2.08,229.31,229.22,12.96072177]
[1734004247331,2.08,229.32,229.25,12.96072177]
[1734004247632,52.47118722,229.33,229.25,12.96072177]
[1734004247930,2.1793,229.37,229.3,2.1799]
[1734004248127,2.08,229.36,229.28,12.96072177]
[1734004248328,2.08,229.36,229.29,1.4204]
[1734004248535,2.1795,229.35,229.31,2.1798]
[1734004249636,2.08,229.37,229.29,1.4204]
[1734004249837,2.1796,229.34,229.3,2.1799]
[1734004251027,2.1791,229.39,229.33,2.1796]
[1734004251231,2.08,229.38,229.33,2.1796]
[1734004251425,2.08,229.39,229.33,2.1796]
[1734004251825,2.1793,229.38,229.33,2.1796]
[1734004252036,253.94522233,229.56,229.34,12.96072177]
[1734004252234,5.16553825,229.43,229.34,12.96072177]
[1734004253234,2.08,229.42,229.34,12.96072177]
[1734004253431,2.08,229.42,229.34,15.14032177]
[1734004253836,2.179,229.4,229.34,15.14032177]
[1734004254039,2.08,229.42,229.34,15.14032177]
[1734004255439,2.1791,229.39,229.34,15.14032177]
[1734004255841,2.1791,229.39,229.35,2.1795]
[1734004256432,2.08,229.43,229.37,12.96072177]
[1734004257237,2.08,229.45,229.42,8.27714898]
[1734004257444,2.08,229.45,229.33,1.3529]
[1734004257633,2.08,229.45,229.41,8.27714898]
[1734004258038,2.1787,229.43,229.38,2.1792]
[1734004258238,2.08,229.45,229.42,8.27714898]
[1734004259141,2.1787,229.43,229.42,8.27714898]
[1734004259345,2.08,229.45,229.38,12.93445497]
[1734004259743,2.1787,229.43,229.38,12.93445497]
[1734004259942,2.08,229.45,229.38,12.93445497]
[1734004260644,2.1792,229.38,229.35,12.93445497]
[1734004260838,2.08,229.45,229.35,12.93445497]
[1734004261042,2.08,229.45,229.38,12.93445497]
[1734004261240,2.1789,229.41,229.38,12.93445497]
[1734004262352,2.06,229.45,229.34,12.93445497]
[1734004263544,2.1788,229.42,229.34,12.93445497]
[1734004263851,2.06,229.45,229.34,12.93445497]
[1734004264047,2.06,229.44,229.37,12.93445497]
[1734004264257,5.3624447,229.47,229.37,12.93445497]
[1734004264547,2.06,229.46,229.38,1.3825]
[1734004264942,2.1788,229.43,229.39,2.1791]
[1734004265146,2.1788,229.43,229.38,1.3825]
[1734004266452,2.1788,229.43,229.38,3.5616]
[1734004267341,2.1788,229.43,229.38,1.3825]
[1734004267545,2.1788,229.43,229.39,2.1791]
[1734004269150,59.61555497,229.53,229.4,12.93445497]
[1734004269151,46.6811,229.53,229.4,12.93445497]
[1734004269347,2.06,229.52,229.44,12.93445497]
[1734004269654,2.1783,229.48,229.44,12.93445497]
[1734004270445,2.06,229.52,229.44,12.93445497]
[1734004270643,2.1784,229.47,229.44,12.93445497]
[1734004273148,2.06,229.5,229.44,12.93445497]
[1734004273345,2.06,229.53,229.47,12.93445497]
[1734004274547,2.06,229.54,229.47,12.93445497]
[1734004274955,8.6127747,229.57,229.47,12.93445497]
[1734004274956,2.06,229.56,229.47,12.93445497]
[1734004275150,2.06,229.56,229.48,1.3664]
[1734004275953,2.06,229.56,229.51,2.1779]
[1734004276255,2.06,229.57,229.51,2.1779]
[1734004277148,2.06,229.57,229.48,1.3664]
[1734004278153,2.1778,229.53,229.48,3.5446]
[1734004278460,2.06,229.57,229.44,12.93445497]
[1734004279464,2.06,229.57,229.45,2.1784]
[1734004279759,2.06,229.57,229.44,12.93445497]
[1734004279957,2.178,229.52,229.46,2.1784]
[1734004280461,2.06,229.57,229.46,2.1784]
[1734004280761,2.178,229.51,229.46,2.1784]
[1734004281162,2.06,229.57,229.46,2.1784]
[1734004281360,2.1781,229.5,229.44,15.11305497]
[1734004281560,2.06,229.57,229.44,12.93445497]
[1734004282067,2.1783,229.48,229.44,12.93445497]
[1734004283061,2.06,229.52,229.44,12.93445497]
[1734004283265,2.06,229.52,229.42,1.3531]
[1734004284562,2.1784,229.46,229.42,3.5319]
[1734004285058,2.06,229.52,229.42,3.5319]
[1734004285258,2.06,229.52,229.42,1.3531]
[1734004285455,2.06,229.52,229.43,2.1787]
[1734004285662,2.06,229.52,229.44,12.93445497]
[1734004286069,2.06,229.52,229.42,3.5319]
[1734004286266,2.1784,229.47,229.42,3.5319]
[1734004286769,2.06,229.52,229.42,3.5319]
[1734004287171,2.06,229.52,229.42,1.3531]
[1734004287463,2.06,229.52,229.44,12.93445497]
[1734004287664,2.1781,229.5,229.46,2.1784]
[1734004288067,2.06,229.52,229.44,12.93445497]
[1734004289975,2.1783,229.48,229.45,2.1785]
[1734004293273,10.33489885,229.52,229.42,1.3531]
[1734004293476,8.27489885,229.5,229.41,8.62867885]
[1734004293981,2.1788,229.42,229.41,0.35378]
[1734004300182,22.59719523,229.42,229.41,0.35378]
[1734004301685,22.5919644,229.42,229.41,0.35378]
[1734004302282,8.64926531,229.42,229.34,2.1795]
[1734004302580,7.31330027,229.44,229.36,2.1794]
[1734004302777,8.6458098,229.43,229.36,2.1794]
[1734004302980,1.4098,229.45,229.36,12.93996097]
[1734004303185,2.06,229.46,229.39,12.93996097]
[1734004303683,2.06,229.46,229.4,2.179]
[1734004304078,2.06,229.46,229.39,12.93996097]
[1734004304284,2.06,229.46,229.42,2.1788]
[1734004305085,4.2384,229.46,229.42,2.1788]
[1734004305284,2.06,229.46,229.42,2.1788]
[1734004305978,2.06,229.46,229.43,2.1786]
[1734004306184,2.06,229.5,229.42,12.93996097]
[1734004306383,2.06,229.5,229.43,1.4323]
[1734004306580,4.2381,229.5,229.45,2.1785]
[1734004307292,4.2381,229.5,229.45,15.11846097]
[1734004307484,4.2379,229.52,229.47,2.1783]
[1734004307684,180.64141675,229.59,229.45,12.93996097]
[1734004307685,2.06,229.53,229.45,12.93996097]
[1734004307885,205.92532344,229.6,229.45,12.93996097]
[1734004307886,2.06,229.55,229.45,12.93996097]
[1734004308389,10.7059294,229.55,229.45,12.93996097]
[1734004308591,2.06,229.55,229.45,12.93996097]
[1734004309087,10.70790752,229.55,229.45,12.93996097]
[1734004309288,2.06,229.55,229.45,12.93996097]
[1734004309690,2.1779,229.52,229.47,2.1783]
[1734004309893,2.06,229.55,229.45,12.93996097]
[1734004310092,5.31679442,229.57,229.45,12.93996097]
[1734004310289,2.1779,229.53,229.48,2.1782]
[1734004313685,2.06,229.55,229.45,12.93996097]
[1734004313883,2.06,229.55,229.43,1.4323]
[1734004314087,22.46037248,229.55,229.43,1.4323]
[1734004314286,2.1785,229.46,229.43,1.4323]
[1734004314483,2.06,229.48,229.43,1.4323]
[1734004315084,2.1786,229.44,229.43,1.4323]
[1734004315287,2.06,229.48,229.4,1.396]
[1734004315491,2.06,229.48,229.39,12.93996097]
[1734004315690,2.06,229.48,229.37,2.1792]
[1734004316188,22.45820958,229.48,229.36,12.93996097]
[1734004316390,20.39820958,229.47,229.36,12.93996097]
[1734004316590,2.06,229.48,229.36,12.93996097]
[1734004317086,10.6967619,229.48,229.36,12.93996097]
[1734004317287,20.38556211,229.47,229.36,12.93996097]
[1734004317494,2.1788,229.42,229.38,2.1792]
[1734004317894,180.64141675,229.55,229.41,12.93996097]
[1734004318194,188.01821117,229.57,229.47,12.93996097]
[1734004318195,20.38927433,229.54,229.47,12.93996097]
[1734004318393,188.01821117,229.57,229.47,12.93996097]
[1734004318394,2.178,229.51,229.47,12.93996097]
[1734004319793,20.38700431,229.56,229.47,12.93996097]
[1734004319990,2.1778,229.53,229.48,2.1782]
[1734004320186,8.63567579,229.54,229.47,12.93996097]
[1734004320396,7.37679442,229.57,229.47,12.93996097]
[1734004320586,2.1781,229.5,229.45,2.1784]
[1734004320791,7.37679442,229.57,229.44,12.93996097]
[1734004320792,2.06,229.52,229.44,12.93996097]
[1734004321393,2.06,229.52,229.45,2.1785]
[1734004321394,2.1781,229.5,229.45,2.1785]
[1734004321993,4.238,229.52,229.46,2.1784]
[1734004322897,2.178,229.52,229.47,15.11826097]
[1734004323100,2.1777,229.54,229.47,12.93996097]
[1734004323399,2.06,229.56,229.47,12.93996097]
[1734004323400,20.39068375,229.55,229.47,12.93996097]
[1734004323594,8.63761334,229.54,229.47,12.93996097]
[1734004323796,2.06,229.56,229.47,12.93996097]
[1734004324094,13.81807236,229.56,229.47,12.93996097]
[1734004324293,8.64062082,229.55,229.47,12.93996097]
[1734004324696,2.06,229.56,229.47,12.93996097]
[1734004324891,22.46108024,229.56,229.47,12.93996097]
[1734004325095,8.64159954,229.55,229.47,12.93996097]
[1734004325296,2.1777,229.54,229.48,2.1782]
[1734004325599,8.64136616,229.56,229.48,2.1782]
[1734004327498,2.1778,229.53,229.48,2.1782]
[1734004328202,2.1779,229.52,229.47,15.11826097]
[1734004328798,2.1778,229.53,229.48,2.1782]
[1734004330896,8.64790749,229.56,229.47,15.11826097]
[1734004331101,8.64790749,229.56,229.47,12.93996097]
[1734004331599,2.178,229.51,229.47,12.93996097]
[1734004332601,2.06,229.52,229.43,1.3902]
[1734004333300,22.46958077,229.52,229.43,1.3902]
[1734004333605,20.4090942,229.51,229.43,1.3902]
[1734004333800,20.4090942,229.5,229.42,1.3321]
[1734004333998,20.4090942,229.49,229.42,1.3321]
[1734004334203,20.4090942,229.48,229.42,1.3321]
[1734004334501,2.1783,229.48,229.42,3.5109]
[1734004334698,20.40704168,229.51,229.42,1.3321]
[1734004335003,20.40704168,229.5,229.42,1.3321]
[1734004335201,20.40704168,229.49,229.42,1.3321]
[1734004335500,8.64417983,229.48,229.42,1.3321]
[1734004335703,2.1784,229.46,229.42,1.3321]
[1734004336105,20.41060806,229.5,229.42,1.3321]
[1734004336402,20.41060806,229.49,229.42,1.3321]
[1734004336600,8.64570234,229.48,229.42,1.3321]
[1734004336801,27.36638597,229.52,229.42,1.3321]
[1734004337003,20.40978046,229.51,229.42,1.3321]
[1734004337202,20.40978046,229.5,229.42,1.3321]
[1734004337401,20.40978046,229.49,229.42,1.3321]
[1734004337597,2.1785,229.46,229.42,1.3321]
[1734004338607,2.06,229.52,229.44,12.93996097]
[1734004339407,22.48108045,229.52,229.44,12.93996097]
[1734004339612,2.1782,229.49,229.45,2.1785]
[1734004339904,2.06,229.56,229.47,12.93996097]
[1734004340101,10.70895461,229.56,229.47,12.93996097]
[1734004340404,2.1778,229.53,229.49,2.1781]
[1734004341400,2.1778,229.53,229.48,2.1782]
[1734004343501,2.1779,229.52,229.48,2.1782]
[1734004346313,8.64991131,229.55,229.44,1.344]
[1734004346503,20.42158744,229.54,229.42,1.3321]
[1734004346701,2.1784,229.47,229.42,3.5109]
[1734004347300,2.1784,229.47,229.46,8.27629415]
[1734004347707,2.06,229.53,229.47,2.1783]
[1734004347902,2.06,229.53,229.49,8.27629415]
[1734004348404,10.71490654,229.53,229.49,8.27629415]
[1734004348604,8.65490654,229.52,229.49,8.27629415]
[1734004348811,8.65490654,229.51,229.44,2.06]
[1734004349113,25.30318974,229.56,229.5,8.27629415]
[1734004349412,20.44274324,229.55,229.52,8.27629415]
[1734004349613,20.44274324,229.54,229.52,8.27629415]
[1734004349807,20.44274324,229.53,229.52,8.27629415]
[1734004350619,22.62064324,229.53,229.52,8.27629415]
[1734004350815,20.44274324,229.53,229.51,8.27629415]
[1734004351108,7.37679442,229.57,229.51,8.27629415]
[1734004351109,20.44274324,229.52,229.51,8.27629415]
[1734004351313,20.44274324,229.52,229.48,2.1782]
[1734004351510,8.65928135,229.51,229.48,2.1782]
[1734004351907,2.1779,229.52,229.48,2.1782]
[1734004352814,22.6283273,229.52,229.48,2.1782]
[1734004353112,2.1779,229.52,229.48,2.1782]
[1734004353912,22.62364606,229.52,229.48,2.1782]
[1734004354114,8.66043928,229.51,229.48,2.1782]
[1734004354310,2.1779,229.52,229.48,2.1782]
[1734004355117,22.63814265,229.52,229.48,2.1782]
[1734004355311,8.66669378,229.51,229.48,2.1782]
[1734004355516,2.1779,229.52,229.48,2.1782]
[1734004356515,2.178,229.51,229.48,2.1782]
[1734004360925,2.178,229.51,229.5,12.92488093]
[1734004361721,7.37679442,229.57,229.5,12.92488093]
[1734004361922,20.45777781,229.56,229.5,12.92488093]
[1734004362120,20.45777781,229.55,229.5,12.92488093]
[1734004362314,20.45777781,229.54,229.5,12.92488093]
[1734004362515,8.66564975,229.53,229.5,12.92488093]
[1734004362721,7.37679442,229.57,229.5,12.92488093]
[1734004362921,2.1779,229.52,229.5,12.92488093]
[1734004364221,7.37679442,229.57,229.5,12.92488093]
[1734004364522,7.37679442,229.57,229.47,12.92488093]
[1734004364523,20.46642455,229.56,229.47,12.92488093]
[1734004364726,20.46642455,229.55,229.44,12.92488093]
[1734004364921,2.1787,229.44,229.41,12.92488093]
[1734004368528,2.1787,229.44,229.41,15.10378093]
[1734004369032,2.06,229.51,229.45,2.1785]
[1734004369228,2.06,229.51,229.45,15.10338093]
[1734004369434,2.1783,229.48,229.45,15.10338093]
[1734004371235,2.1783,229.48,229.47,8.27363879]
[1734004373131,10.84695315,229.48,229.47,8.27363879]
[1734004373941,8.66865315,229.48,229.47,8.27363879]
[1734004374141,2.1782,229.49,229.47,8.27363879]
[1734004374442,8.66865315,229.48,229.47,8.27363879]
[1734004377747,2.1782,229.49,229.47,8.27363879]
[1734004380245,2.1782,229.49,229.45,2.1785]
[1734004380445,2.1782,229.49,229.48,8.27363879]
[1734004384341,2.1781,229.5,229.48,8.27363879]
[1734004384545,25.37247393,229.55,229.49,8.27363879]
[1734004384847,20.48746516,229.54,229.52,8.27363879]
[1734004385041,22.66526516,229.53,229.52,8.27363879]
[1734004385644,10.85598255,229.53,229.52,8.27363879]
[1734004385839,2.1778,229.53,229.52,8.27363879]
[1734004386444,10.85598255,229.53,229.52,8.27363879]
[1734004386746,22.66685406,229.53,229.52,8.27363879]
[1734004388750,20.48905406,229.53,229.52,8.27363879]
[1734004389049,2.06,229.59,229.52,8.27363879]
[1734004389241,182.81871675,229.58,229.57,8.27363879]
[1734004391249,2.1773,229.58,229.57,8.27363879]
[1734004393648,27.54623861,229.58,229.57,8.27363879]
[1734004394253,2.1773,229.58,229.57,8.27363879]
[1734004398753,2.06,229.62,229.57,8.27363879]
[1734004398954,2.06,229.62,229.61,8.27363879]
[1734004399358,21.26511777,229.65,229.61,8.27363879]
[1734004399561,11.33966855,229.64,229.61,8.27363879]
[1734004399750,2.06,229.65,229.61,8.27363879]
[1734004400258,13.40074619,229.65,229.61,8.27363879]
[1734004400650,2.1769,229.62,229.61,8.27363879]
[1734004401157,5.1371228,229.64,229.51,4.059]
[1734004401350,5.1371228,229.64,229.28,48.52046284]
[1734004401351,8.27363879,229.6,229.52,8.27363879]
[1734004401551,8.27363879,229.58,229.5,8.27363879]
[1734004402052,9.72783879,229.58,229.5,8.27363879]
[1734004402652,2.178,229.51,229.5,8.27363879]
[1734004402858,2.06,229.54,229.5,8.27363879]
[1734004403060,2.1778,229.53,229.5,8.27363879]
[1734004403257,2.1778,229.53,229.52,8.27363879]
[1734004403761,4.2377,229.54,229.52,8.27363879]
[1734004404956,2.1774,229.57,229.52,8.27363879]
[1734004405156,2.06,229.59,229.55,8.27363879]
[1734004406063,2.06,229.59,229.57,8.27363879]
[1734004406665,13.37916994,229.62,229.57,8.27363879]
[1734004406961,13.37916994,229.62,229.59,8.27363879]
[1734004407157,2.1771,229.6,229.59,8.27363879]
[1734004407352,2.1771,229.6,229.51,1.4391]
[1734004407560,2.06,229.62,229.57,8.27363879]
[1734004408365,9.90785785,229.62,229.57,8.27363879]
[1734004408560,2.1773,229.58,229.57,8.27363879]
[1734004408765,2.06,229.62,229.51,1.4391]
[1734004408965,25.26339124,229.61,229.55,8.27363879]
[1734004409264,19.16060526,229.6,229.55,8.27363879]
[1734004409461,180.64141675,229.61,229.55,8.27363879]
[1734004409661,19.16413366,229.6,229.55,8.27363879]
[1734004409859,180.64141675,229.61,229.55,8.27363879]
[1734004410061,19.16527477,229.6,229.55,8.27363879]
[1734004410255,11.31606182,229.59,229.55,8.27363879]
[1734004410460,205.91671062,229.61,229.55,8.27363879]
[1734004410657,2.1775,229.56,229.55,8.27363879]
[1734004424975,19.21721807,229.6,229.51,2.1779]
[1734004425272,2.1776,229.55,229.51,2.1779]
[1734004425970,180.64141675,229.69,229.5,2.06]
[1734004426170,19.22150315,229.68,229.51,2.7775]
[1734004426371,182.70141675,229.71,229.67,8.27363879]
[1734004426372,180.64141675,229.7,229.67,8.27363879]
[1734004426573,21.28461955,229.69,229.67,8.27363879]
[1734004426769,11.35123497,229.68,229.67,8.27363879]
[1734004426973,2.06,229.69,229.67,8.27363879]
[1734004427371,2.1763,229.68,229.67,8.27363879]
[1734004427577,7.39910459,229.68,229.67,8.27363879]
[1734004427979,2.1762,229.7,229.67,8.27363879]
[1734004428181,2.1762,229.7,229.64,2.1766]
[1734004428182,2.1762,229.7,229.69,8.27363879]
[1734004438679,8.27363879,229.72,229.61,1.4071]
[1734004438980,8.27363879,229.69,229.62,8.27363879]
[1734004439181,2.06,229.68,229.62,8.27363879]
[1734004439577,13.37041598,229.68,229.62,8.27363879]
[1734004439886,2.06,229.68,229.57,2.1774]
[1734004440073,21.21551614,229.68,229.61,8.27363879]
[1734004440278,2.06,229.68,229.61,8.27363879]
[1734004440474,2.1769,229.62,229.61,8.27363879]
[1734004448183,2.177,229.61,229.6,8.27363879]
[1734004448587,2.06,229.64,229.6,8.27363879]
[1734004448787,2.06,229.64,229.59,0.47801]
[1734004448988,2.06,229.64,229.61,8.27363879]
[1734004449688,2.06,229.64,229.59,0.47801]
[1734004449689,2.06,229.64,229.63,8.27363879]
[1734004450585,4.2368,229.64,229.63,8.27363879]
[1734004452186,2.1771,229.6,229.59,8.75164879]
[1734004454595,2.1771,229.6,229.59,0.47801]
[1734004455791,2.1774,229.57,229.56,8.27363879]
[1734004456091,2.06,229.59,229.51,1.4142]
[1734004456391,2.06,229.59,229.54,8.27363879]
[1734004456789,2.06,229.59,229.56,8.27363879]
[1734004456990,2.1774,229.57,229.56,8.27363879]
[1734004457589,2.06,229.59,229.47,77.66467611]
[1734004457590,2.1781,229.5,229.49,8.27363879]
[1734004457894,2.06,229.54,229.49,8.27363879]
[1734004458590,2.178,229.51,229.49,8.27363879]
[1734004458793,2.06,229.54,229.49,8.66958879]
[1734004458991,2.06,229.54,229.53,8.27363879]
[1734004459498,4.2377,229.54,229.53,8.27363879]
[1734004461899,2.06,229.54,229.53,8.27363879]
[1734004462192,2.06,229.58,229.53,8.27363879]
[1734004462396,5.27944605,229.6,229.56,8.27363879]
[1734004462397,2.1775,229.57,229.56,8.27363879]
[1734004463597,2.1773,229.58,229.56,8.27363879]
[1734004463891,2.06,229.61,229.54,8.27363879]
[1734004464294,7.16903333,229.61,229.54,8.27363879]
[1734004464493,7.16903333,229.61,229.56,8.27363879]
[1734004465699,2.1774,229.57,229.56,8.27363879]
[1734004467814,2.1781,229.5,229.49,0.39595]
[1734004467998,12.51173879,229.5,229.49,0.39595]
[1734004468197,12.51173879,229.5,229.39,8.27363879]
[1734004468198,8.27363879,229.47,229.39,8.27363879]
[1734004468697,2.179,229.4,229.39,8.27363879]
[1734004470598,2.179,229.4,229.34,2.1796]
[1734004471003,2.179,229.4,229.37,8.27363879]
[1734004471398,2.179,229.4,229.39,8.27363879]
[1734004471607,2.06,229.42,229.39,8.27363879]
[1734004471608,2.1789,229.41,229.39,8.27363879]
[1734004472103,2.06,229.42,229.39,8.27363879]